bitfinex-derivatives/quotes_BTCF0:USTF0_20240815
["timestamp","ask_amount","ask_price","bid_price","bid_amount"]
[1723716824019,0.00025679,58436.0,58435.0,0.085551]
[1723716824229,0.01225679,58436.0,58435.0,0.085551]
[1723716824428,0.02625679,58436.0,58435.0,0.085551]
[1723716824728,0.14455679,58436.0,58435.0,0.085551]
[1723716825123,0.23010679,58436.0,58435.0,0.085551]
[1723716825522,0.14455679,58436.0,58430.0,0.10233831]
[1723716825853,0.085556,58432.0,58430.0,0.08528405]
[1723716826031,0.085557,58431.0,58430.0,0.08528405]
[1723716826331,0.137157,58431.0,58430.0,0.12979078]
[1723716826923,0.137157,58431.0,58430.0,0.13079078]
[1723716827126,0.311857,58431.0,58430.0,0.13079078]
[1723716827733,0.317857,58431.0,58430.0,0.13079078]
[1723716828033,0.322857,58431.0,58430.0,0.13079078]
[1723716829526,0.322857,58431.0,58430.0,0.04550673]
[1723716830132,0.33300767,58431.0,58430.0,0.04556752]
[1723716834525,0.38780767,58431.0,58430.0,0.04556752]
[1723716834721,0.38780767,58431.0,58430.0,0.04571348]
[1723716837632,0.011,58431.0,58430.0,0.35191079]
[1723716837834,0.011,58431.0,58430.0,0.39863804]
[1723716838339,0.011,58431.0,58430.0,0.35392456]
[1723716838539,0.011,58431.0,58430.0,0.82109233]
[1723716839841,0.011,58431.0,58430.0,0.83117378]
[1723716840026,0.011,58431.0,58430.0,0.76902453]
[1723716840234,0.011,58431.0,58430.0,0.76902874]
[1723716840732,0.096557,58431.0,58430.0,0.82125188]
[1723716840934,0.214857,58431.0,58430.0,0.6406379]
[1723716841140,0.214857,58431.0,58430.0,0.49157752]
[1723716841340,0.214857,58431.0,58430.0,0.64064151]
[1723716842236,0.214857,58431.0,58430.0,0.64099723]
[1723716844711,0.300414,58431.0,58430.0,0.55543823]
[1723716844838,0.300414,58431.0,58430.0,0.08649063]
[1723716844839,0.3516364,58431.0,58430.0,0.08649063]
[1723716845039,0.3516364,58431.0,58430.0,0.001]
[1723716845236,0.300414,58431.0,58430.0,0.001]
[1723716845642,0.35166457,58431.0,58430.0,0.001]
[1723716846247,1.04274,58431.0,58426.0,0.08549063]
[1723716846438,0.085565,58426.0,58425.0,0.08549063]
[1723716846633,0.085566,58425.0,58424.0,0.06863256]
[1723716846837,0.171136,58424.0,58423.0,0.05128522]
[1723716847040,0.171138,58423.0,58422.0,0.05128522]
[1723716847241,0.25671,58422.0,58421.0,0.05128522]
[1723716847438,0.171146,58420.0,58419.0,0.05128522]
[1723716847638,0.650246,58420.0,58419.0,0.05128522]
[1723716848341,0.650246,58420.0,58417.0,0.05128522]
[1723716848342,0.171152,58418.0,58417.0,0.05128522]
[1723716848541,0.289452,58418.0,58417.0,0.05128522]
[1723716849440,0.085578,58417.0,58416.0,0.05128522]
[1723716850341,0.085579,58416.0,58415.0,0.05128522]
[1723716851037,0.446379,58416.0,58415.0,0.05128522]
[1723716851948,0.448379,58416.0,58415.0,0.05228522]
[1723716852551,0.448379,58416.0,58415.0,0.001]
[1723716853544,0.087579,58416.0,58415.0,0.05228522]
[1723716853746,0.087579,58416.0,58415.0,0.086581]
[1723716854098,0.087579,58416.0,58415.0,0.21105677]
[1723716856210,0.002,58416.0,58415.0,0.15278961]
[1723716858545,0.002,58416.0,58415.0,1.15930724]
[1723716858745,0.3608,58423.0,58422.0,0.08557]
[1723716859541,0.00025679,58425.0,58424.0,0.085568]
[1723716859747,0.00025679,58425.0,58424.0,0.446368]
[1723716860776,0.00425679,58425.0,58424.0,0.446368]
[1723716861253,0.00425679,58425.0,58424.0,0.447368]
[1723716861553,0.00025679,58425.0,58424.0,0.448368]
[1723716869554,0.00025679,58425.0,58424.0,0.58002325]
[1723716869857,0.00025679,58425.0,58424.0,0.69832325]
[1723716870054,0.00025679,58425.0,58424.0,0.65186164]
[1723716870855,0.00025679,58425.0,58424.0,0.69834124]
[1723716871050,0.00025679,58425.0,58424.0,0.65186164]
[1723716871551,0.00025679,58425.0,58424.0,0.69834746]
[1723716871758,0.00025679,58425.0,58424.0,0.61315382]
[1723716872009,0.01030894,58431.0,58430.0,0.085559]
[1723716872259,0.085557,58432.0,58431.0,0.085557]
[1723716872560,0.085557,58432.0,58431.0,0.1537671]
[1723716873153,0.203857,58432.0,58431.0,0.085557]
[1723716874160,0.085557,58431.0,58430.0,0.4290101]
[1723716875356,0.085557,58431.0,58430.0,0.3608]
[1723716875756,0.092557,58431.0,58430.0,0.3608]
[1723716876456,0.098557,58431.0,58430.0,0.3608]
[1723716878463,0.098557,58431.0,58430.0,0.4290101]
[1723716879572,0.098557,58431.0,58430.0,0.3608]
[1723716883071,0.184114,58431.0,58430.0,0.3608]
[1723716885464,0.296314,58431.0,58430.0,0.3608]
[1723716886466,0.296314,58431.0,58430.0,0.44606474]
[1723716887268,1.295311,58431.0,58430.0,0.11362312]
[1723716887468,0.085559,58430.0,58429.0,0.06838901]
[1723716887672,0.17112,58429.0,58428.0,0.06838901]
[1723716887860,0.37498,58429.0,58428.0,0.06838901]
[1723716888061,0.37498,58429.0,58426.0,0.06838901]
[1723716888062,1.03174,58429.0,58426.0,0.06838901]
[1723716888262,0.564663,58427.0,58426.0,0.03417327]
[1723716888463,0.085571,58422.0,58421.0,0.06838901]
[1723716888669,0.564671,58422.0,58421.0,0.06838901]
[1723716888971,1.478191,58422.0,58421.0,0.06838901]
[1723716889364,0.085581,58415.0,58414.0,0.00025679]
[1723716889566,0.564681,58415.0,58414.0,0.04698082]
[1723716889967,0.446381,58415.0,58414.0,0.04698082]
[1723716891373,0.447381,58415.0,58414.0,0.05098082]
[1723716891572,0.448381,58415.0,58414.0,0.05098082]
[1723716892085,0.448381,58415.0,58414.0,0.05090068]
[1723716893167,0.448381,58415.0,58414.0,0.05106889]
[1723716893973,0.533962,58415.0,58414.0,0.05106889]
[1723716894366,0.54421134,58415.0,58414.0,0.05106889]
[1723716897072,0.54421134,58415.0,58414.0,0.05113077]
[1723716898576,0.54421134,58415.0,58414.0,0.05112642]
[1723716898771,0.59549184,58415.0,58414.0,0.05112642]
[1723716900377,0.68107284,58415.0,58414.0,0.05112642]
[1723716900575,1.28660934,58415.0,58408.0,0.10258044]
[1723716900765,0.3608,58409.0,58397.0,0.00013752]
[1723716900964,0.0856,58402.0,58401.0,0.10271259]
[1723716901164,0.0856,58402.0,58401.0,0.19843549]
[1723716901370,0.1712,58402.0,58401.0,0.3011575]
[1723716901579,0.1712,58402.0,58401.0,0.0498176]
[1723716902478,0.22246978,58402.0,58401.0,0.0498176]
[1723716902869,0.1722,58402.0,58401.0,0.0498176]
[1723716903271,0.22346978,58402.0,58401.0,0.19897069]
[1723716903467,0.22346978,58402.0,58401.0,0.0498176]
[1723716903677,0.1722,58402.0,58401.0,0.0498176]
[1723716903879,0.1722,58402.0,58401.0,0.0508176]
[1723716904781,0.24056289,58402.0,58401.0,0.0508176]
[1723716904977,0.1722,58402.0,58401.0,0.0508176]
[1723716905168,0.24056289,58402.0,58401.0,0.0508176]
[1723716905366,0.24056289,58402.0,58401.0,0.05134346]
[1723716906175,0.18213433,58402.0,58401.0,0.05134346]
[1723716906782,0.2334245,58402.0,58401.0,0.05134346]
[1723716908081,0.2334245,58402.0,58401.0,0.15405956]
[1723716908276,0.18213433,58402.0,58401.0,0.15405956]
[1723716908481,0.1478245,58402.0,58401.0,0.15405956]
[1723716908681,0.09653433,58402.0,58401.0,0.15405956]
[1723716909384,0.09653433,58402.0,58401.0,0.05134346]
[1723716909574,0.001,58402.0,58401.0,0.05134346]
[1723716910095,0.001,58402.0,58401.0,0.20436401]
[1723716910382,0.001,58402.0,58401.0,0.086601]
[1723716910883,0.0866,58402.0,58401.0,0.001]
[1723716912081,0.4474,58402.0,58401.0,0.001]
[1723716912380,0.4474,58402.0,58401.0,0.0527323]
[1723716912381,0.0866,58402.0,58401.0,0.0527323]
[1723716913779,0.0866,58402.0,58401.0,0.15477566]
[1723716913981,0.0866,58402.0,58401.0,0.05240216]
[1723716914878,0.1722,58402.0,58401.0,0.05240216]
[1723716915889,0.2906,58402.0,58401.0,0.05240216]
[1723716916197,0.2906,58402.0,58401.0,0.001]
[1723716917243,0.34188942,58402.0,58401.0,0.001]
[1723716917388,0.2906,58402.0,58401.0,0.001]
[1723716917881,0.4682,58402.0,58401.0,0.001]
[1723716919592,0.829,58402.0,58401.0,0.001]
[1723716925192,0.96588942,58402.0,58401.0,0.001]
[1723716925376,0.96588942,58402.0,58401.0,0.06938984]
[1723716925794,0.9146,58402.0,58401.0,0.001]
[1723716926287,0.97,58402.0,58401.0,0.001]
[1723716926594,1.88368,58402.0,58401.0,0.001]
[1723716926988,1.88668,58402.0,58401.0,0.05128829]
[1723716928283,1.88568,58402.0,58401.0,0.05128829]
[1723716928488,1.88868,58402.0,58401.0,0.05128829]
[1723716928884,1.88668,58402.0,58401.0,0.05128829]
[1723716929090,1.89468,58402.0,58401.0,0.05128829]
[1723716929586,0.171202,58401.0,58400.0,0.05128829]
[1723716929812,0.22240465,58401.0,58400.0,0.05128829]
[1723716930890,0.22840465,58401.0,58400.0,0.05128829]
[1723716931905,0.085604,58399.0,58398.0,0.06838984]
[1723716932388,0.085606,58398.0,58397.0,0.00013752]
[1723716932692,0.171212,58398.0,58397.0,0.00013752]
[1723716933491,0.467212,58398.0,58397.0,0.00013752]
[1723716933795,0.470212,58398.0,58397.0,0.0685013]
[1723716934488,0.983932,58398.0,58397.0,0.0685013]
[1723716934684,0.470212,58398.0,58397.0,0.0685013]
[1723716934889,0.48332001,58398.0,58397.0,0.0685013]
[1723716935495,0.47932001,58398.0,58397.0,0.0685013]
[1723716935698,0.48132001,58398.0,58397.0,0.0685013]
[1723716936895,0.48132001,58398.0,58397.0,0.00013752]
[1723716938001,0.30372001,58398.0,58397.0,0.00013752]
[1723716938601,0.30372001,58398.0,58397.0,0.0685013]
[1723716939693,0.30372001,58398.0,58397.0,0.00013752]
[1723716940696,0.35492266,58398.0,58397.0,0.00013752]
[1723716941094,0.35492266,58398.0,58397.0,0.05142379]
[1723716941397,0.35492266,58398.0,58397.0,0.00013752]
[1723716941597,0.44052866,58398.0,58397.0,0.00013752]
[1723716941798,0.38932601,58398.0,58397.0,0.00013752]
[1723716942196,0.44762601,58398.0,58397.0,0.00013752]
[1723716942397,0.44562601,58398.0,58397.0,0.00013752]
[1723716942999,0.44562601,58398.0,58397.0,0.05143708]
[1723716943000,0.44362601,58398.0,58397.0,0.05143708]
[1723716943194,0.5119889,58398.0,58397.0,0.05143708]
[1723716943393,0.5119889,58398.0,58397.0,0.00013752]
[1723716943599,0.256821,58397.0,58396.0,0.04311387]
[1723716944107,0.085616,58391.0,58390.0,0.0854963]
[1723716944300,0.204016,58391.0,58390.0,0.0553055]
[1723716944542,0.20415352,58391.0,58390.0,0.14081473]
[1723716945500,0.08575352,58391.0,58390.0,0.40849319]
[1723716945721,0.00013752,58391.0,58390.0,0.40849319]
[1723716945910,0.00013752,58391.0,58390.0,0.47943542]
[1723716946641,0.11853752,58391.0,58390.0,0.36103542]
[1723716946807,0.20415352,58391.0,58390.0,0.36103542]
[1723716947206,0.20415352,58391.0,58390.0,0.3610297]
[1723716947407,0.20415352,58391.0,58390.0,0.51019467]
[1723716949015,0.20415352,58391.0,58390.0,0.3610297]
[1723716949809,0.20515352,58391.0,58390.0,0.3620297]
[1723716950916,0.20515352,58391.0,58390.0,0.21286473]
[1723716951208,0.20515352,58391.0,58390.0,0.36203008]
[1723716951411,0.20615352,58391.0,58390.0,0.36203008]
[1723716952202,0.08775352,58391.0,58390.0,0.36203008]
[1723716952411,0.08775352,58391.0,58390.0,0.48043008]
[1723716952714,0.08775352,58391.0,58390.0,0.99423008]
[1723716953612,0.08775352,58391.0,58390.0,0.47923218]
[1723716953914,0.08775352,58391.0,58390.0,0.36083218]
[1723716954710,0.08775352,58391.0,58390.0,0.36083178]
[1723716956811,0.00213752,58391.0,58390.0,0.36083178]
[1723716957217,0.0512259,58398.0,58397.0,0.085607]
[1723716957514,0.446402,58400.0,58399.0,0.085604]
[1723716957713,0.446402,58400.0,58399.0,0.39171378]
[1723716958104,0.446402,58400.0,58399.0,0.3917015]
[1723716958306,0.446402,58400.0,58399.0,0.28905781]
[1723716958904,0.45679758,58400.0,58399.0,0.20345381]
[1723716960817,0.54239958,58400.0,58399.0,0.20345381]
[1723716961024,0.54239958,58400.0,58387.0,0.11975318]
[1723716961025,0.171222,58394.0,58393.0,0.10264369]
[1723716961211,0.085616,58391.0,58388.0,0.08553605]
[1723716961408,0.7080011,58389.0,58385.0,0.08579284]
[1723716961608,0.0512011,58386.0,58385.0,0.00025679]
[1723716961812,0.4120011,58387.0,58385.0,0.00025679]
[1723716962014,0.085635,58378.0,58375.0,0.08553605]
[1723716962215,0.085639,58375.0,58374.0,0.08553605]
[1723716962420,0.65792001,58376.0,58372.0,0.08553605]
[1723716962613,0.6568,58376.0,58372.0,0.08553605]
[1723716963624,0.085644,58372.0,58371.0,0.08553605]
[1723716964320,0.085645,58371.0,58370.0,0.08553605]
[1723716964825,0.085645,58371.0,58368.0,0.00025679]
[1723716964826,0.085648,58369.0,58368.0,0.08579284]
[1723716965120,0.085648,58369.0,58368.0,0.00025679]
[1723716965121,0.171296,58369.0,58368.0,0.00025679]
[1723716966024,0.085648,58369.0,58368.0,0.00025679]
[1723716966320,0.09700311,58369.0,58368.0,0.00125679]
[1723716967227,0.09800311,58369.0,58368.0,0.00225679]
[1723716967930,0.002,58369.0,58368.0,0.00225679]
[1723716968238,0.002,58369.0,58368.0,0.08790579]
[1723716970423,0.002,58369.0,58368.0,0.44870579]
[1723716970632,0.002,58369.0,58368.0,1.36266579]
[1723716970819,0.00025679,58380.0,58379.0,0.085633]
[1723716971123,0.00025679,58380.0,58379.0,0.446433]
[1723716971327,0.3608,58385.0,58384.0,0.085626]
[1723716971528,0.3608,58402.0,58385.0,0.085623]
[1723716971724,0.3608,58402.0,58395.0,0.08561]
[1723716972028,0.3608,58402.0,58389.0,0.3608]
[1723716972029,0.296,58401.0,58389.0,0.3608]
[1723716972222,0.085607,58397.0,58393.0,0.085612]
[1723716973423,0.085609,58396.0,58393.0,0.085612]
[1723716974325,0.085611,58395.0,58389.0,0.44667579]
[1723716974529,0.085611,58395.0,58390.0,0.085617]
[1723716974827,0.085611,58395.0,58389.0,0.36105679]
[1723716975527,0.085611,58395.0,58393.0,0.003]
[1723716976125,0.085611,58395.0,58393.0,0.002]
[1723716976327,0.086611,58395.0,58393.0,0.002]
[1723716977129,0.086611,58395.0,58393.0,0.087612]
[1723716977332,0.087611,58395.0,58393.0,0.087612]
[1723716978434,0.087611,58395.0,58393.0,0.089612]
[1723716980627,0.001,58395.0,58394.0,0.446411]
[1723716980827,0.002,58395.0,58394.0,0.446411]
[1723716981825,0.001,58395.0,58394.0,0.446411]
[1723716982029,0.002,58395.0,58394.0,0.446411]
[1723716982535,0.001,58395.0,58394.0,0.446411]
[1723716982734,0.002,58395.0,58394.0,0.448411]
[1723716982939,0.001,58395.0,58394.0,0.448411]
[1723716983153,0.002,58395.0,58394.0,0.450411]
[1723716983733,0.001,58395.0,58394.0,0.448411]
[1723716983934,0.002,58395.0,58394.0,0.450411]
[1723716989025,0.08761,58395.0,58394.0,0.089611]
[1723716992227,0.08661,58395.0,58394.0,0.002]
[1723716992432,0.18358742,58395.0,58394.0,0.004]
[1723716992833,0.18258742,58395.0,58394.0,0.002]
[1723716993040,0.18358742,58395.0,58394.0,0.004]
[1723716993443,0.09797742,58395.0,58394.0,0.004]
[1723716994667,0.09697742,58395.0,58394.0,0.004]
[1723716995544,0.09597742,58395.0,58394.0,0.002]
[1723716995749,0.09597742,58395.0,58394.0,0.004]
[1723716995750,0.09697742,58395.0,58394.0,0.004]
[1723716996247,0.09697742,58395.0,58394.0,0.002]
[1723716996248,0.09597742,58395.0,58394.0,0.002]
[1723716996446,0.09597742,58395.0,58394.0,0.004]
[1723716997047,0.09697742,58395.0,58394.0,0.004]
[1723716997439,0.18258742,58395.0,58394.0,0.004]
[1723716997740,0.18158742,58395.0,58394.0,0.002]
[1723716997941,0.18158742,58395.0,58394.0,0.004]
[1723716998439,0.18158742,58395.0,58394.0,0.002]
[1723716998641,0.09597742,58395.0,58394.0,0.004]
[1723716999035,0.08561,58395.0,58394.0,0.450411]
[1723716999449,0.08561,58395.0,58394.0,0.22164704]
[1723716999751,0.08561,58395.0,58394.0,0.089611]
[1723717000340,0.08561,58395.0,58394.0,0.13452281]
[1723717000542,0.08561,58395.0,58394.0,0.13652281]
[1723717001143,0.08561,58395.0,58394.0,0.13252281]
[1723717001447,0.08561,58395.0,58394.0,0.13652281]
[1723717001651,0.08561,58395.0,58394.0,0.05091181]
[1723717002244,0.14091,58395.0,58394.0,0.05091181]
[1723717002553,0.14191,58395.0,58394.0,0.05291181]
[1723717003540,0.50271,58395.0,58394.0,0.05291181]
[1723717003744,0.50271,58395.0,58394.0,0.13846288]
[1723717004248,0.50271,58395.0,58394.0,0.13846717]
[1723717004445,0.50171,58395.0,58394.0,0.13646717]
[1723717004759,0.50171,58395.0,58394.0,0.05091181]
[1723717004760,0.14091,58395.0,58394.0,0.05091181]
[1723717005654,0.13991,58395.0,58394.0,0.05091181]
[1723717006045,0.13991,58395.0,58394.0,0.13645991]
[1723717006355,0.13991,58395.0,58394.0,0.13645733]
[1723717007253,0.22552,58395.0,58394.0,0.13645733]
[1723717007552,0.22552,58395.0,58394.0,0.08954552]
[1723717008742,0.22552,58395.0,58394.0,0.08754552]
[1723717008952,0.22552,58395.0,58394.0,0.08854552]
[1723717010651,0.13991,58395.0,58394.0,0.08854552]
[1723717011054,0.08561,58395.0,58394.0,0.05050334]
[1723717011846,0.08561,58395.0,58394.0,0.41130334]
[1723717012050,0.08561,58395.0,58394.0,0.51394657]
[1723717012254,0.08561,58395.0,58394.0,0.41130334]
[1723717012854,0.08561,58395.0,58394.0,0.41065908]
[1723717016062,0.08561,58395.0,58394.0,0.04985908]
[1723717016364,0.08561,58395.0,58394.0,0.19902308]
[1723717017256,0.08561,58395.0,58394.0,0.19926018]
[1723717020068,0.17122,58395.0,58394.0,0.19926018]
[1723717020262,0.08561,58395.0,58394.0,0.19926018]
[1723717020461,0.46722,58395.0,58394.0,0.19926058]
[1723717020781,0.46722,58395.0,58389.0,0.00025679]
[1723717020782,0.171234,58390.0,58389.0,0.08584728]
[1723717021081,0.171254,58383.0,58382.0,0.08559049]
[1723717021382,0.17126,58381.0,58380.0,0.08559049]
[1723717021675,0.3608,58383.0,58376.0,0.08559049]
[1723717021676,0.085636,58377.0,58376.0,0.08559049]
[1723717022281,0.08564,58375.0,58373.0,0.3608]
[1723717023379,0.17128,58375.0,58373.0,0.3608]
[1723717023685,0.08564,58374.0,58373.0,0.3608]
[1723717025178,0.08664,58374.0,58373.0,0.3608]
[1723717025383,0.08664,58374.0,58373.0,0.44617388]
[1723717025770,0.08764,58374.0,58373.0,0.44617388]
[1723717026585,0.08764,58374.0,58373.0,0.3608]
[1723717027680,0.08764,58374.0,58373.0,0.3618]
[1723717028478,0.08564,58374.0,58373.0,0.3618]
[1723717028684,0.08764,58374.0,58373.0,0.3618]
[1723717028886,0.09778168,58374.0,58373.0,0.3618]
[1723717029895,0.09778168,58374.0,58373.0,0.001]
[1723717030881,0.085642,58373.0,58372.0,0.167]
[1723717032075,0.086642,58373.0,58372.0,0.168]
[1723717032879,0.087642,58373.0,58372.0,0.168]
[1723717034378,0.087642,58373.0,58372.0,0.23622345]
[1723717035173,0.087642,58373.0,58372.0,0.168]
[1723717035610,0.087642,58373.0,58372.0,0.06922156]
[1723717035787,0.087642,58373.0,58372.0,0.001]
[1723717040991,0.173284,58373.0,58372.0,0.0692321]
[1723717042282,0.173284,58373.0,58372.0,0.001]
[1723717042491,0.087642,58373.0,58372.0,0.001]
[1723717043686,0.087642,58373.0,58372.0,0.21729604]
[1723717043884,0.087642,58373.0,58372.0,0.2172634]
[1723717044186,0.087642,58373.0,58372.0,0.13192216]
[1723717045086,0.002,58373.0,58372.0,0.13192216]
[1723717045890,0.002,58373.0,58372.0,0.23456539]
[1723717046088,0.002,58373.0,58372.0,0.13192216]
[1723717046393,0.002,58373.0,58372.0,0.23456539]
[1723717047286,0.002,58373.0,58372.0,0.23454351]
[1723717047679,0.01044901,58377.0,58376.0,0.085637]
[1723717047883,0.085613,58393.0,58377.0,0.085635]
[1723717048084,0.05119887,58398.0,58394.0,0.08561]
[1723717048283,0.085606,58397.0,58396.0,0.08547682]
[1723717049329,0.085606,58397.0,58396.0,0.17108382]
[1723717049481,0.085606,58397.0,58396.0,0.085607]
[1723717049785,0.088606,58397.0,58396.0,0.085607]
[1723717051390,0.091606,58397.0,58396.0,0.06827398]
[1723717051583,0.085607,58396.0,58395.0,0.06827398]
[1723717051782,0.139307,58396.0,58395.0,0.06827398]
[1723717052397,0.085609,58395.0,58394.0,0.06827398]
[1723717053192,0.08561,58394.0,58393.0,0.06827398]
[1723717053486,0.08561,58394.0,58392.0,0.42907398]
[1723717054291,0.0557,58396.0,58394.0,0.08561]
[1723717054491,0.085609,58395.0,58394.0,0.08561]
[1723717054987,0.085609,58395.0,58394.0,0.15380315]
[1723717055286,0.087609,58395.0,58394.0,0.08561]
[1723717056189,0.002,58395.0,58394.0,0.08561]
[1723717056386,0.087609,58395.0,58394.0,0.08561]
[1723717057288,0.088609,58395.0,58394.0,0.08561]
[1723717058798,0.003,58395.0,58394.0,0.08561]
[1723717061503,0.003,58395.0,58394.0,0.44641]
[1723717063587,0.003,58395.0,58394.0,0.49751367]
[1723717064026,0.003,58395.0,58394.0,0.41190367]
[1723717064027,0.088609,58395.0,58394.0,0.41190367]
[1723717066806,0.088609,58395.0,58394.0,0.3608]
[1723717067106,0.085612,58393.0,58392.0,0.06819315]
[1723717068402,0.085612,58393.0,58392.0,0.06919315]
[1723717069000,0.085612,58393.0,58392.0,0.07019315]
[1723717069510,0.085612,58393.0,58392.0,0.0701909]
[1723717069802,0.171224,58393.0,58392.0,0.002]
[1723717070003,0.467224,58393.0,58392.0,0.002]
[1723717070195,0.171226,58392.0,58391.0,0.00025679]
[1723717070397,0.1132,58392.0,58386.0,0.05114818]
[1723717070610,0.171246,58385.0,58384.0,0.05114818]
[1723717070813,0.171264,58379.0,58378.0,0.05114818]
[1723717071000,0.085634,58378.0,58377.0,0.05117013]
[1723717071356,0.085637,58376.0,58374.0,0.05117013]
[1723717071700,0.08564,58374.0,58373.0,0.05117013]
[1723717072605,0.08564,58374.0,58372.0,0.00025679]
[1723717072606,0.085641,58373.0,58372.0,0.00025679]
[1723717073612,0.085641,58373.0,58372.0,0.06844845]
[1723717074710,0.086641,58373.0,58372.0,0.00725679]
[1723717075009,0.086641,58373.0,58372.0,0.07546427]
[1723717075606,0.087641,58373.0,58372.0,0.08246427]
[1723717076407,0.087641,58373.0,58372.0,0.01425679]
[1723717079507,0.087641,58373.0,58372.0,0.08242763]
[1723717079810,0.087641,58373.0,58372.0,0.01425679]
[1723717080110,0.087641,58373.0,58372.0,0.08242763]
[1723717080510,0.087641,58373.0,58372.0,0.01425679]
[1723717080748,0.087641,58373.0,58372.0,0.09989879]
[1723717081911,0.087641,58373.0,58372.0,0.16806963]
[1723717082103,0.087641,58373.0,58372.0,0.16805912]
[1723717082417,0.09798406,58373.0,58372.0,0.09989879]
[1723717083104,0.087641,58373.0,58372.0,0.16805569]
[1723717083304,0.087641,58373.0,58372.0,0.09989879]
[1723717083702,0.087641,58373.0,58372.0,0.16805193]
[1723717083999,0.087641,58373.0,58372.0,0.09989879]
[1723717087703,0.087641,58373.0,58372.0,0.16805193]
[1723717088212,0.087641,58373.0,58372.0,0.01425679]
[1723717089920,0.206041,58373.0,58372.0,0.01425679]
[1723717092508,0.206041,58373.0,58372.0,0.08240993]
[1723717094110,0.087641,58373.0,58372.0,0.08240993]
[1723717094413,0.087641,58373.0,58372.0,0.01425679]
[1723717094614,0.206041,58373.0,58372.0,0.01425679]
[1723717097619,0.206041,58373.0,58372.0,0.14640705]
[1723717098322,0.206041,58373.0,58372.0,0.06094956]
[1723717099411,0.087641,58373.0,58372.0,0.16346203]
[1723717099611,0.087641,58373.0,58372.0,0.23223356]
[1723717099612,0.002,58373.0,58372.0,0.23223356]
[1723717099815,0.002,58373.0,58372.0,0.47324432]
[1723717100016,0.002,58373.0,58372.0,0.43332643]
[1723717100419,0.08563,58381.0,58380.0,0.08563]
[1723717100612,0.08563,58381.0,58380.0,0.31319984]
[1723717101114,0.08563,58381.0,58380.0,0.24975272]
[1723717101818,0.08563,58381.0,58380.0,0.04572272]
[1723717102016,0.20503,58381.0,58380.0,0.14838655]
[1723717103119,0.20603,58381.0,58380.0,0.04572272]
[1723717104920,0.29166,58381.0,58380.0,0.04572272]
[1723717105125,0.17126,58380.0,58379.0,0.08552254]
[1723717105318,0.085633,58378.0,58377.0,0.08552254]
[1723717105627,0.085634,58377.0,58376.0,0.08552254]
[1723717105822,0.204034,58377.0,58376.0,0.08552254]
[1723717106224,0.204034,58377.0,58376.0,0.13329785]
[1723717107525,0.204034,58377.0,58376.0,0.13629785]
[1723717108029,0.085634,58377.0,58376.0,0.13629785]
[1723717108926,0.085634,58377.0,58376.0,0.14029785]
[1723717109624,0.085634,58377.0,58376.0,0.05477531]
[1723717111118,0.085634,58377.0,58376.0,0.05657678]
[1723717115134,0.085634,58377.0,58376.0,0.20578428]
[1723717118127,0.085634,58377.0,58376.0,0.29142028]
[1723717119925,0.085634,58377.0,58376.0,0.2932365]
[1723717123145,0.085634,58377.0,58376.0,0.29323387]
[1723717124136,0.085634,58377.0,58376.0,0.3958977]
[1723717124342,0.085634,58377.0,58376.0,0.39591825]
[1723717125737,0.085634,58377.0,58376.0,0.29325442]
[1723717125935,0.085634,58377.0,58376.0,0.39590517]
[1723717126776,0.085634,58377.0,58376.0,0.2467003]
[1723717127040,0.085634,58377.0,58376.0,0.39590417]
[1723717127437,0.085634,58377.0,58376.0,0.29325342]
[1723717128346,0.085634,58377.0,58376.0,0.55968824]
[1723717129342,0.01035375,58382.0,58376.0,0.54311968]
[1723717129551,0.00025679,58383.0,58382.0,0.085627]
[1723717129736,0.00025679,58383.0,58382.0,0.28624442]
[1723717129940,0.00025679,58383.0,58382.0,0.79892246]
[1723717130136,0.00025679,58383.0,58382.0,0.6710497]
[1723717130341,0.00025679,58383.0,58382.0,0.3580811]
[1723717130543,0.00025679,58383.0,58382.0,0.53249655]
[1723717130739,0.00025679,58383.0,58382.0,0.6351364]
[1723717130942,0.00025679,58383.0,58382.0,0.5167364]
[1723717131236,0.08988279,58383.0,58382.0,0.5167364]
[1723717131440,0.08988279,58383.0,58382.0,0.20059755]
[1723717131636,0.17550879,58383.0,58382.0,0.20059755]
[1723717131839,0.17550879,58383.0,58382.0,0.08552797]
[1723717132150,0.171254,58382.0,58381.0,0.08552797]
[1723717132346,0.289654,58382.0,58381.0,0.08552797]
[1723717132743,0.171258,58381.0,58380.0,0.08552797]
[1723717132942,0.171258,58381.0,58380.0,0.13783023]
[1723717134141,0.171258,58381.0,58380.0,0.08553598]
[1723717134435,0.172258,58381.0,58380.0,0.08553598]
[1723717134749,0.173258,58381.0,58380.0,0.08553598]
[1723717135143,0.173258,58381.0,58380.0,0.13894772]
[1723717135341,0.087629,58381.0,58380.0,0.13894772]
[1723717135540,0.087629,58381.0,58380.0,0.05341174]
[1723717135741,0.087629,58381.0,58380.0,0.20260809]
[1723717136149,0.087629,58381.0,58380.0,0.26200809]
[1723717136334,0.087629,58381.0,58380.0,0.34763809]
[1723717136539,0.002,58381.0,58380.0,0.40623809]
[1723717136935,0.085616,58390.0,58380.0,0.40623809]
[1723717136936,0.085618,58388.0,58381.0,0.085628]
[1723717137140,0.085618,58388.0,58384.0,0.46343891]
[1723717137336,0.085618,58388.0,58387.0,0.08553741]
[1723717137543,0.085618,58387.0,58386.0,0.17115741]
[1723717137745,0.085618,58387.0,58386.0,0.22753515]
[1723717137942,0.085618,58387.0,58386.0,0.14199774]
[1723717138250,0.085614,58390.0,58389.0,0.085613]
[1723717138453,0.085614,58390.0,58389.0,0.29117237]
[1723717138844,0.085614,58390.0,58389.0,0.3626037]
[1723717139056,0.085614,58390.0,58389.0,0.21348428]
[1723717139351,0.085614,58390.0,58389.0,0.29115615]
[1723717139754,0.085614,58390.0,58389.0,0.36433482]
[1723717139948,0.085614,58390.0,58389.0,0.29115615]
[1723717140147,0.096614,58390.0,58389.0,0.29215615]
[1723717140752,0.096614,58390.0,58389.0,0.14299074]
[1723717140958,0.108614,58390.0,58389.0,0.39685678]
[1723717141256,0.108614,58390.0,58389.0,0.29424484]
[1723717141460,0.108614,58390.0,58389.0,0.75760703]